Cogmind - Beta 15 --- EXPLORER MODE // 2025.07.24 @ 04:15:56 Player: 690412 Result: Destroyed by D-53 Grenadier with Mini Grenade Launcher Performance ------------- Evolutions (0) 0 Regions Visited (0) 0 Robots Destroyed (0) 0 Value Destroyed (0) 0 Prototype IDs (0) 0 Alien Tech Used (0) 0 Bonus (0) 0 TOTAL SCORE: 0 Bonus ------- None Cogmind --------- Core Integrity 0/250 Matter 118/300 Energy 100/100 System Corruption 0% Temperature Cool (0) Movement Walking (120) Location -11/Scrapyard Parts ------- > --- POWER (1) -------- (None) > --- PROPULSION (2) --- Aluminum Leg > --- UTILITY (2) ------ Targeting Computer > --- WEAPON (2) ------- (None) > --- INVENTORY (5) ---- Medium Storage Unit Utility Shielding Small Laser Peak State ------------ > --- POWER ------------ (None) > --- PROPULSION ------- Aluminum Leg Aluminum Leg > --- UTILITY ---------- Seismic Detector Targeting Computer > --- WEAPON ----------- Assault Rifle > --- INVENTORY -------- (None) [Rating: 5] Favorites ----------- Power None Propulsion Aluminum Leg Leg Aluminum Leg Utility Targeting Computer Device Seismic Detector Processor Targeting Computer Weapon Assault Rifle Ballistic Gun Assault Rifle Build | -11 ------- Run | Yrd Slots Evolved . | . Power . | . Propulsion . | . Utility . | . Weapon . | . Parts Attached 5 | 5 Power . | . Engine . | . Core . | . Reactor . | . Propulsion 2 | 2 Treads . | . Leg 2 | 2 Wheel . | . Hover . | . Flight . | . Utility 2 | 2 Device 1 | 1 Storage . | . Processor 1 | 1 Hackware . | . Protection . | . Artifact . | . Weapon 1 | 1 Energy Gun . | . Energy Cannon . | . Ballistic Gun 1 | 1 Ballistic Cannon . | . Launcher . | . Special Weapon . | . Impact Weapon . | . Slashing Weapon . | . Piercing Weapon . | . Special Melee Weapon . | . Unidentified Prototypes . | . Parts Lost 3 | 3 Power . | . Propulsion 1 | 1 Utility 1 | 1 Weapon 1 | 1 Highest Loss Streak 3 | 3 To Critical Strikes . | . Average Backups 1 | 1 Power . | . Propulsion . | . Utility . | . Weapon . | . Tool/Special . | . Unused Backups 3 | 3 Power . | . Propulsion . | . Utility 2 | 2 Weapon 1 | 1 Tool/Special . | . Average Slot Usage (%) . | . Peak Build Rating 5 | 5 Average Rating 1 | 1 On Entrance . | . Naked Turns . | . Heaviest Build 3 | 3 Greatest Support 20 | 20 Greatest Overweight (x) . | . Average Overweight (x) . | . Largest Inventory Capacity 5 | 5 Average Capacity 5 | 5 Most Carried 5 | 5 Average Carried 1 | 1 Final Capacity 5 | 5 Final Carried 3 | 3 Class Distribution -------------------- None Dominant Class ---------------- None Resources | -11 ----------- Run | Yrd Matter Collected 53 | 53 Remotely . | . Salvage Created . | . Parts . | . Haulers Intercepted . | . Recyclers Shooed . | . Parts Field Recycled . | . Retrieved Matter . | . Parts Self-Destructed . | . Prevented . | . Kills | -11 ------- Run | Yrd Combat Hostiles Destroyed . | . Classes Destroyed . | . Best Kill Streak . | . Combat Bots Only . | . Max Kills in Single Turn . | . Gunslinging . | . Exploded . | . Melee . | . Uniques/NPCs Destroyed . | . Combat | -11 -------- Run | Yrd Hostile Shots Fired 20 | 20 Missed 1 | 1 Hits 19 | 19 Projectile 19 | 19 AOE 20 | 20 Damage Taken 508 | 508 Core 251 | 251 Absorbed by Shields . | . Ignored by Resistances 297 | 297 Core Remaining (%) . | . Volleys Fired . | . Largest . | . Hottest . | . Shots Fired . | . Gun . | . Cannon . | . Launcher . | . Special . | . Kinetic . | . Thermal . | . Explosive . | . Electromagnetic . | . Robot Hit Streak . | . Robot Miss Streak . | . Penetration Max . | . Secondary Targets . | . Shots Hit Robots . | . Core Hits . | . Critical Kills . | . Critical Parts Destroyed . | . Critical Strikes . | . Melee Attacks . | . Impact . | . Slashing . | . Piercing . | . Sneak Attacks . | . Combat Hostiles . | . Follow-up Attacks . | . Damage Inflicted . | . Guns . | . Cannons . | . Explosions . | . Melee . | . Ramming . | . Kinetic . | . Thermal . | . Explosive . | . Electromagnetic . | . Impact . | . Slashing . | . Piercing . | . Highest Corruption . | . Average Corruption . | . Corruption Purged . | . Corruption Blocked . | . Overload Shots . | . Overflow Damage . | . Projectiles . | . Explosions . | . Melee . | . Knockbacks . | . Impact . | . Kinetic . | . Secondary . | . Self-Inflicted Damage . | . Shots . | . Rammed . | . Targets Rammed . | . Kicked . | . Crushed . | . Highest Temperature . | . Average Temperature . | . Received Heat Transfer . | . Siege Activations . | . Martial Activations . | . Shielding Activations . | . Robots Disrupted . | . Combat Hostiles . | . Robots Corrupted . | . Combat Hostiles . | . Parts Fried . | . Impact Corruptions . | . Robots Melted . | . Combat Hostiles . | . Parts Melted . | . Heat Transferred . | . Parts Sabotaged . | . Parts Stolen . | . Parts Stripped . | . Power Chain Reactions . | . Alert | -11 ------- Run | Yrd Maximum Alert Level . | . Low Security (%) 100 | 100 Level 1 . | . Level 2 . | . Level 3 . | . Level 4 . | . Level 5 . | . High Security . | . Max Security . | . Peak Influence . | . Initial . | . Average . | . Influence Increases . | . Influence Decreases . | . Squads Dispatched . | . Investigation . | . Extermination . | . Reinforcement . | . Assault . | . Garrison . | . Intercept . | . Searches Triggered . | . Construction Impeded . | . Haulers Reinforced . | . Active Scanning Responses . | . Cargo Convoy Interrupts . | . Stealth | -11 --------- Run | Yrd Distress Signals . | . Communications Jammed . | . Distress Signals . | . Times Spotted 2 | 2 Peak Tracking Total 2 | 2 Tactical Retreats . | . Traps | -11 ------- Run | Yrd Traps Triggered . | . Indirectly . | . Trap Hack Attempts . | . Triggered . | . Disarmed . | . Reprogrammed . | . Reused . | . Traps Extracted . | . Installed . | . Triggered . | . Machines | -11 ---------- Run | Yrd Machines Disabled . | . Max in Single Turn . | . Machines Repaired . | . Machines Dismantled . | . Machines Sabotaged . | . Overloaded Fab Kills . | . Hacking | -11 --------- Run | Yrd Machines Accessed . | . Terminals . | . Fabricators . | . Repair Stations . | . Recycling Units . | . Scanalyzers . | . Garrison Access . | . Total Hacks . | . Successful . | . Failed . | . Catastrophic . | . Database Lockouts . | . Manual . | . Terminals . | . Fabricators . | . Repair Stations . | . Recycling Units . | . Scanalyzers . | . Garrison Access . | . Terminal Hacks . | . Fabricator Hacks . | . Repair Station Hacks . | . Recycling Unit Hacks . | . Scanalyzer . | . Garrison Access Hacks . | . Unauthorized Hacks . | . Terminals . | . Fabricators . | . Repair Stations . | . Recycling Units . | . Scanalyzers . | . Garrison Access . | . Data Cores Recovered . | . Used . | . Hacking Detections . | . Full Trace Events . | . Feedback Events . | . Feedback Blocked . | . Robot Schematics Acquired . | . Robots Built . | . Authchips . | . Time . | . Total Robot Build Rating . | . Part Schematics Acquired . | . Parts Built . | . Authchips . | . Time . | . Total Part Build Rating . | . Parts Repaired . | . Time . | . Parts Recycled . | . Recycled Matter . | . Retrieved Matter . | . Retrieved Components . | . Parts Scanalyzed . | . Part Schematics Acquired . | . Parts Damaged . | . Bothacking | -11 ------------ Run | Yrd Used RIF Installer . | . Robots Hacked . | . Non-combat . | . Combat . | . Robot Hacks Applied . | . Relay Couplers Released . | . Fabnet Peak Effective % . | . Robots Rewired . | . Allies Hacked . | . Hacks Repelled . | . Allies | -11 -------- Run | Yrd Total Allies . | . Largest Group . | . Highest-Rated Group . | . Highest-Rated Ally . | . Total Orders . | . Ally Attacks . | . Total Damage . | . Kills . | . Allies Corrupted . | . Allies Melted . | . Intel | -11 ------- Run | Yrd Active Infowar (turns) 478 | 478 Seismic 478 | 478 Robot Analysis Total . | . Derelict Logs Recovered . | . Drone Launches . | . Drone Recoveries . | . Exploration | -11 ------------- Run | Yrd Turns Passed 2580 | 2580 Spaces Moved 44 | 44 Core 20 | 20 Treads . | . Legs 24 | 24 Wheels . | . Hover . | . Flight . | . Fastest Speed 50 | 50 Average Speed 88 | 88 Slowest Speed 120 | 120 Overloaded Moves . | . Propulsion Burnouts . | . Robots Hopped . | . Potential Cave-ins 3 | 3 Cave-ins Triggered . | . Exploration Rate (%) 11 | 11 Regions Visited . Branch Regions . Pre-discovered Areas . | . Known Exits Taken . | . Unknown Exits Taken . | . Scrap Searched . | . Spaces Dug . | . Terrain Destroyed . | . Melee . | . Projectile . | . AOE . | . Terrain Rammed . | . Walls Destroyed . | . Machines Disabled . | . Actions | -11 --------- Run | Yrd Total 2585 | 2585 Wait 2528 | 2528 Move 44 | 44 Hop . | . Pick Up 8 | 8 Fast Attach . | . Attach 5 | 5 Detach . | . Swap . | . Drop . | . Fire . | . Melee . | . Ram . | . Kick . | . Crush . | . Escape Stasis . | . Rewire . | . Trap . | . Miscellaneous . | . Route ------- -11/Scrapyard (discovered 1 exit: *Mat) History --------- Turn | Location | Event 1236 | -11/Scrapyard | Identified exit to Materials 1236 | -11/Scrapyard | Discovered exit to Materials (range 15) 2216 | -11/Scrapyard | Assembled infested the area 2551 | -11/Scrapyard | Core integrity fell below 50% 2577 | -11/Scrapyard | Core integrity fell below 20% 2581 | -11/Scrapyard | Destroyed by D-53 Grenadier with Mini Grenade Launcher Last Messages --------------- 02216_ ALERT: Infestation in the scrapyard, dispatching Demolisher response squad. [Achievement: Curiosity Killed The Cat] 02328_ Acquired Utility Shielding. 02331_ Acquired Sml. Laser. 02348_ Acquired Med. Storage Unit. 02533_ T-07 Excavator destroyed. 02539_ D-53 Grenadier destroyed. 02546_ Aluminum Leg destroyed. 02549_ The unstable cave ceiling collapses. 02559_ Assault Rifle destroyed. Open spaces previously occupied by now-destroyed walls and earth have a slight glow to them. Consecutive moves through these unstable areas may cause a cave-in, but only if doing so for extended periods. Tunneling a short distance between rooms is safe unless the area was destabilized by an explosion. 02563_ Seismic Detector destroyed. 02565_ The unstable cave ceiling collapses. Map ----- +----------------------------------------------------+ | ?????????????????????????????????????????????????? | | ?????????????????????????????????????????????????? | | ?????????????????????????????????????????????????? | | ?????????????????????????????????????????????????? | | ?????????????????????????????????????????????????? | | ???????????? ????????????????????????????????????? | | ???????????? ???????????????????????????????????? | | ????????????? ???????????????????????????????????? | | ?????????????# ??????????????????????????????????? | | ?????????##### ??????????????????????????????????? | | ?????????? # ##########???????????????????????? | | ???????????? # # #####???????????????????? | | ?????????????# # #???????? ??????????? | | ?????????????# #?????? ????????? | | ?????######### ##### ???????? | | ???? = ???????? | | ??????# d ???????? | | ???????# ##### # ##### % < ???????? | | ?????? ?# # = #?????? ???????? | | ?????? # #?????????##????????? | | ?????? # ###########????????????? | | ?????? # # #????????????? | | ????? #????????????? | | ??????#####?## ?????????????? | | ?????????????# # ?????????????? | | ?????????????# @# ??????????????? | | ?????????????# #? ?? ???????????????? | | ?????????????# # #? ???????????????????? | | ?????????????#k # # #?? ???????????????????? | | ???????????? ?# # #??????????????????????? | | ?????????? #??# # #??????????????????????? | | ????????? ????# # t#??????????????????????? | | ???????? ?????######## #??????????????????????? | | ???????? ??????????????# #??????????????????????? | | ??????????????????????? ??????????????????????? | | ??????????????????????? ??????????????????????? | | ??????????????????????? ??????????????????????? | | ??????????????????????? ??????????????????????? | | ???????????????????????#####?????????????????????? | | ?????????????????????????????????????????????????? | | ?????????????????????????????????????????????????? | | ?????????????????????????????????????????????????? | | ?????????????????????????????????????????????????? | | ?????????????????????????????????????????????????? | | ?????????????????????????????????????????????????? | | ?????????????????????????????????????????????????? | | ?????????????????????????????????????????????????? | | ?????????????????????????????????????????????????? | | ?????????????????????????????????????????????????? | | ?????????????????????????????????????????????????? | +----------------------------------------------------+ Best States ------------- Heat Dissipation 25 Energy Generation 5 Energy Capacity 100 Matter Stores 153 Matter Capacity 300 Sight Range 16 Terrain Scan Density 10 Resistance: KI 35 Resistance: TH 35 Resistance: EX 35 Resistance: EM 35 Resistance: I 35 Resistance: S 35 Resistance: P 35 Evasion (%) 55 Targeting Accuracy 5 Offensive Hacking 20 Item Schematics ----------------- None Robot Schematics ------------------ None Fabricated ------------ Nothing Repaired ---------- Nothing Alien Tech Used ----------------- None Achievements -------------- Curiosity Killed The Cat Challenges ------------ None Game ------ Seed ThrowingProtonRedirector Manual? 0 Play Time 00:11:24 Cumulative 22.7 hours Start 2025.07.24 @ 03:54:04 End 2025.07.24 @ 04:15:56 Sessions 2 Manual Loads 0 Difficulty Explorer Special Mode None Game No. 12 Rogue 0 Adventurer 10 Explorer 2 Win Type - Total 0 Types 0/0/0/0/0/0/0/0/0/0 Lore% 9 Gallery% 16 Achievement% 16 Wizard Run 0 Options --------- Layout 2 ASCII 1 Keyboard 0 Movement Numpad Keybinds 0 Fullscreen 1 Font 20/SmallcapsGlow Map View 25x22 Zoom Use 49% Tactical HUD 1 Map Filters NONE Filters NONE Steam 1 RUN: b1bc4919-4e06-4b25-8309-58c98eb1fbd6